[Event "Titled Tuesday Blitz March 29 Early 2022"]
[White "Skliarov, Viktor"]
[Black "Mikhnenko, Alexander"]
[WhiteFideId "14106736"]
[BlackFideId "34143014"]
[WhiteElo "2229"]
[BlackElo "2184"]
[Result "1-0"]
[Round "07"]
[TimeControl "180+1"]
[Date "2022.03.30"]
[WhiteClock "0:00:51"]
[BlackClock "0:00:31"]

1. e4 {[%clk 0:03:00]}  c5 {[%clk 0:02:57]} 2. Nf3 {[%clk 0:03:00]}  e6 {[%clk 0:02:54]} 3. c3 {[%clk 0:03:01]}  d5 {[%clk 0:02:53]} 4. e5 {[%clk 0:03:01]}  d4 {[%clk 0:02:53]} 5. Bb5+ {[%clk 0:02:56]}  Bd7 {[%clk 0:02:51]} 6. Bxd7+ {[%clk 0:02:55]}  Qxd7 {[%clk 0:02:52]} 7. d3 {[%clk 0:02:51]}  Nc6 {[%clk 0:02:51]} 8. O-O {[%clk 0:02:51]}  Nge7 {[%clk 0:02:50]} 9. c4 {[%clk 0:02:48]}  Ng6 {[%clk 0:02:50]} 10. Qe2 {[%clk 0:02:47]}  Qc7 {[%clk 0:02:49]} 11. Re1 {[%clk 0:02:47]}  Be7 {[%clk 0:02:47]} 12. g3 {[%clk 0:02:39]}  h6 {[%clk 0:02:45]} 13. h4 {[%clk 0:02:39]}  O-O-O {[%clk 0:02:41]} 14. a3 {[%clk 0:02:30]}  Nf8 {[%clk 0:02:37]} 15. b4 {[%clk 0:02:26]}  cxb4 {[%clk 0:02:36]} 16. axb4 {[%clk 0:02:26]}  Bxb4 {[%clk 0:02:36]} 17. Bd2 {[%clk 0:02:23]}  Bxd2 {[%clk 0:02:36]} 18. Nbxd2 {[%clk 0:02:23]}  Nd7 {[%clk 0:02:36]} 19. Nb3 {[%clk 0:02:20]}  Ndb8 {[%clk 0:02:17]} 20. Qe4 {[%clk 0:01:58]}  Na6 {[%clk 0:02:05]} 21. Reb1 {[%clk 0:01:47]}  Rd7 {[%clk 0:01:57]} 22. Rxa6 {[%clk 0:01:21]}  bxa6 {[%clk 0:01:55]} 23. Nc5 {[%clk 0:01:21]}  Re7 {[%clk 0:01:40]} 24. Nxd4 {[%clk 0:01:14]}  Nb8 {[%clk 0:01:40]} 25. Qa8 {[%clk 0:00:57]}  Rd8 {[%clk 0:00:31]} 26. Nc6 {[%clk 0:00:51]} 1-0


[Site "https://www.chess.com"]

[Event "Titled Tuesday Blitz March 29 Early 2022"]
[White "Smietanska, Wiktoria"]
[Black "Sahil, Tickoo"]
[WhiteFideId "21869359"]
[BlackFideId "5019710"]
[WhiteElo "1893"]
[BlackElo "2099"]
[Result "0-1"]
[Round "07"]
[TimeControl "180+1"]
[Date "2022.03.30"]
[WhiteClock "0:00:19"]
[BlackClock "0:00:29"]

1. c4 {[%clk 0:03:00]}  e6 {[%clk 0:02:59]} 2. Nc3 {[%clk 0:03:00]}  d5 {[%clk 0:02:59]} 3. cxd5 {[%clk 0:03:00]}  exd5 {[%clk 0:03:00]} 4. d4 {[%clk 0:03:01]}  Nf6 {[%clk 0:03:01]} 5. Bg5 {[%clk 0:03:01]}  c6 {[%clk 0:03:01]} 6. e3 {[%clk 0:03:01]}  Nbd7 {[%clk 0:03:02]} 7. Bd3 {[%clk 0:03:02]}  Be7 {[%clk 0:03:02]} 8. Nge2 {[%clk 0:03:03]}  h6 {[%clk 0:03:02]} 9. Bh4 {[%clk 0:03:02]}  Nh5 {[%clk 0:03:01]} 10. Bxe7 {[%clk 0:02:55]}  Qxe7 {[%clk 0:03:02]} 11. O-O {[%clk 0:02:55]}  O-O {[%clk 0:03:00]} 12. Qc2 {[%clk 0:02:56]}  Nb6 {[%clk 0:02:58]} 13. Rae1 {[%clk 0:02:56]}  Re8 {[%clk 0:02:52]} 14. Nc1 {[%clk 0:02:52]}  Be6 {[%clk 0:02:51]} 15. f3 {[%clk 0:02:52]}  Rad8 {[%clk 0:02:48]} 16. Qf2 {[%clk 0:02:50]}  Nf6 {[%clk 0:02:17]} 17. N1e2 {[%clk 0:02:42]}  a6 {[%clk 0:02:14]} 18. Ng3 {[%clk 0:02:40]}  c5 {[%clk 0:02:10]} 19. Nf5 {[%clk 0:02:31]}  Bxf5 {[%clk 0:02:07]} 20. Bxf5 {[%clk 0:02:32]}  cxd4 {[%clk 0:02:03]} 21. exd4 {[%clk 0:02:32]}  Qb4 {[%clk 0:02:02]} 22. Rxe8+ {[%clk 0:02:24]}  Rxe8 {[%clk 0:02:00]} 23. Rd1 {[%clk 0:02:19]}  Nc4 {[%clk 0:01:54]} 24. Rb1 {[%clk 0:01:34]}  Ne3 {[%clk 0:01:39]} 25. Bh3 {[%clk 0:01:21]}  Qxd4 {[%clk 0:01:10]} 26. Re1 {[%clk 0:01:07]}  Qd3 {[%clk 0:01:04]} 27. Qe2 {[%clk 0:00:32]}  Qxe2 {[%clk 0:00:59]} 28. Rxe2 {[%clk 0:00:33]}  d4 {[%clk 0:00:59]} 29. Na4 {[%clk 0:00:28]}  Nfd5 {[%clk 0:00:50]} 30. Nc5 {[%clk 0:00:24]}  Nf4 {[%clk 0:00:48]} 31. Kf2 {[%clk 0:00:20]}  Nd1+ {[%clk 0:00:33]} 32. Kf1 {[%clk 0:00:19]}  Nxe2 {[%clk 0:00:29]} 0-1


[Site "https://www.chess.com"]

[Event "Titled Tuesday Blitz March 29 Early 2022"]
[White "Taboas Rodriguez, Daniel"]
[Black "Czerw, Dawid"]
[WhiteFideId "2208466"]
[BlackFideId "1145746"]
[WhiteElo "2429"]
[BlackElo "2125"]
[Result "0-1"]
[Round "07"]
[TimeControl "180+1"]
[Date "2022.03.30"]
[WhiteClock "0:00:30"]
[BlackClock "0:00:35"]

1. d4 {[%clk 0:03:00]}  Nf6 {[%clk 0:02:59]} 2. Nf3 {[%clk 0:03:00]}  c5 {[%clk 0:02:58]} 3. d5 {[%clk 0:03:00]}  b5 {[%clk 0:02:54]} 4. c4 {[%clk 0:03:01]}  Bb7 {[%clk 0:02:51]} 5. a4 {[%clk 0:03:00]}  b4 {[%clk 0:02:47]} 6. Bg5 {[%clk 0:02:59]}  d6 {[%clk 0:02:46]} 7. Nbd2 {[%clk 0:02:59]}  Nbd7 {[%clk 0:02:46]} 8. e4 {[%clk 0:02:59]}  g6 {[%clk 0:02:47]} 9. Bd3 {[%clk 0:02:58]}  Bg7 {[%clk 0:02:47]} 10. O-O {[%clk 0:02:58]}  O-O {[%clk 0:02:47]} 11. Qc2 {[%clk 0:02:56]}  Qc7 {[%clk 0:02:34]} 12. Rae1 {[%clk 0:02:55]}  Rae8 {[%clk 0:02:33]} 13. h3 {[%clk 0:02:52]}  Kh8 {[%clk 0:02:33]} 14. Bf4 {[%clk 0:02:51]}  Ng8 {[%clk 0:02:32]} 15. Re2 {[%clk 0:02:42]}  e5 {[%clk 0:02:22]} 16. dxe6 {[%clk 0:02:40]}  fxe6 {[%clk 0:02:20]} 17. Bg3 {[%clk 0:02:38]}  e5 {[%clk 0:02:13]} 18. Rfe1 {[%clk 0:02:16]}  Ne7 {[%clk 0:02:08]} 19. Nf1 {[%clk 0:02:16]}  Nc6 {[%clk 0:02:08]} 20. Rd2 {[%clk 0:01:56]}  Rxf3 {[%clk 0:01:44]} 21. gxf3 {[%clk 0:01:56]}  Nd4 {[%clk 0:01:44]} 22. Qd1 {[%clk 0:01:56]}  Rf8 {[%clk 0:01:44]} 23. Be2 {[%clk 0:01:55]}  Nf6 {[%clk 0:01:44]} 24. Ne3 {[%clk 0:01:55]}  Nh5 {[%clk 0:01:42]} 25. Nd5 {[%clk 0:01:49]}  Bxd5 {[%clk 0:01:39]} 26. exd5 {[%clk 0:01:49]}  Qd7 {[%clk 0:01:30]} 27. Kg2 {[%clk 0:01:48]}  Bh6 {[%clk 0:01:26]} 28. Rd3 {[%clk 0:01:48]}  Qf5 {[%clk 0:01:21]} 29. Bf1 {[%clk 0:01:43]}  Bf4 {[%clk 0:01:14]} 30. h4 {[%clk 0:01:29]}  g5 {[%clk 0:01:05]} 31. Re4 {[%clk 0:00:39]}  gxh4 {[%clk 0:01:01]} 32. Bxh4 {[%clk 0:00:40]}  Rg8+ {[%clk 0:00:53]} 33. Kh1 {[%clk 0:00:39]}  Qg6 {[%clk 0:00:47]} 34. Bh3 {[%clk 0:00:40]}  Nf5 {[%clk 0:00:35]} 35. Bxf5 {[%clk 0:00:30]}  Qg2# {[%clk 0:00:35]} 0-1


[Site "https://www.chess.com"]

[Event "Titled Tuesday Blitz March 29 Early 2022"]
[White "Tanenbaum, Zachary"]
[Black "Omariev, Maksim"]
[WhiteFideId "2060850"]
[BlackFideId "4193423"]
[WhiteElo "2168"]
[BlackElo "2531"]
[Result "1-0"]
[Round "07"]
[TimeControl "180+1"]
[Date "2022.03.30"]
[WhiteClock "0:01:48"]
[BlackClock "0:00:01"]

1. e4 {[%clk 0:03:00]}  c5 {[%clk 0:02:56]} 2. Nf3 {[%clk 0:03:01]}  d6 {[%clk 0:02:54]} 3. d4 {[%clk 0:03:01]}  cxd4 {[%clk 0:02:55]} 4. Nxd4 {[%clk 0:03:02]}  Nf6 {[%clk 0:02:54]} 5. Nc3 {[%clk 0:03:02]}  a6 {[%clk 0:02:54]} 6. Be3 {[%clk 0:03:02]}  Ng4 {[%clk 0:02:54]} 7. Bc1 {[%clk 0:03:03]}  Nf6 {[%clk 0:02:54]} 8. f3 {[%clk 0:03:03]}  e6 {[%clk 0:02:53]} 9. Be3 {[%clk 0:03:03]}  b5 {[%clk 0:02:52]} 10. Qd2 {[%clk 0:03:03]}  Nbd7 {[%clk 0:02:51]} 11. O-O-O {[%clk 0:03:03]}  b4 {[%clk 0:02:32]} 12. Nce2 {[%clk 0:03:02]}  d5 {[%clk 0:02:30]} 13. g4 {[%clk 0:03:02]}  dxe4 {[%clk 0:02:23]} 14. g5 {[%clk 0:03:00]}  Nd5 {[%clk 0:02:21]} 15. Nf4 {[%clk 0:02:46]}  Nxf4 {[%clk 0:01:26]} 16. Bxf4 {[%clk 0:02:46]}  Bb7 {[%clk 0:01:26]} 17. Bc4 {[%clk 0:02:25]}  e5 {[%clk 0:01:21]} 18. Nf5 {[%clk 0:02:25]}  exf4 {[%clk 0:01:17]} 19. Qxf4 {[%clk 0:02:26]}  Qb8 {[%clk 0:00:35]} 20. Nxg7+ {[%clk 0:02:21]}  Kd8 {[%clk 0:00:26]} 21. Qxf7 {[%clk 0:02:22]}  Bc6 {[%clk 0:00:09]} 22. Ne6+ {[%clk 0:02:02]}  Kc8 {[%clk 0:00:10]} 23. Qe8+ {[%clk 0:02:02]}  Kb7 {[%clk 0:00:08]} 24. Rxd7+ {[%clk 0:02:03]}  Bxd7 {[%clk 0:00:08]} 25. Qxd7+ {[%clk 0:02:04]}  Kb6 {[%clk 0:00:09]} 26. Bd5 {[%clk 0:02:04]}  Qc8 {[%clk 0:00:05]} 27. Qf7 {[%clk 0:01:59]}  Ra7 {[%clk 0:00:05]} 28. Qf6 {[%clk 0:01:58]}  Bd6 {[%clk 0:00:04]} 29. Qd4+ {[%clk 0:01:54]}  Kb5 {[%clk 0:00:03]} 30. Qxa7 {[%clk 0:01:51]}  Re8 {[%clk 0:00:01]} 31. Nd4+ {[%clk 0:01:49]}  Ka5 {[%clk 0:00:01]} 32. Bb7 {[%clk 0:01:48]} 1-0


[Site "https://www.chess.com"]

[Event "Titled Tuesday Blitz March 29 Early 2022"]
[White "Todorovic, Bojan"]
[Black "Ravi, Teja S."]
[WhiteFideId "917087"]
[BlackFideId "5017220"]
[WhiteElo "2266"]
[BlackElo "2412"]
[Result "0-1"]
[Round "07"]
[TimeControl "180+1"]
[Date "2022.03.30"]
[WhiteClock "0:00:28"]
[BlackClock "0:01:45"]

1. d4 {[%clk 0:02:59]}  Nf6 {[%clk 0:02:59]} 2. Bg5 {[%clk 0:02:59]}  d5 {[%clk 0:02:56]} 3. e3 {[%clk 0:02:56]}  Ne4 {[%clk 0:02:56]} 4. Bf4 {[%clk 0:02:55]}  c5 {[%clk 0:02:53]} 5. Bd3 {[%clk 0:02:53]}  cxd4 {[%clk 0:02:50]} 6. exd4 {[%clk 0:02:53]}  Nc6 {[%clk 0:02:45]} 7. c3 {[%clk 0:02:50]}  Bf5 {[%clk 0:02:46]} 8. Ne2 {[%clk 0:02:40]}  e6 {[%clk 0:02:45]} 9. O-O {[%clk 0:02:33]}  Be7 {[%clk 0:02:42]} 10. f3 {[%clk 0:02:13]}  Nd6 {[%clk 0:02:30]} 11. Bxd6 {[%clk 0:01:59]}  Qxd6 {[%clk 0:02:29]} 12. Bxf5 {[%clk 0:01:57]}  exf5 {[%clk 0:02:30]} 13. Qd3 {[%clk 0:01:53]}  g6 {[%clk 0:02:29]} 14. Nd2 {[%clk 0:01:49]}  O-O-O {[%clk 0:02:29]} 15. b4 {[%clk 0:01:48]}  Kb8 {[%clk 0:02:29]} 16. Nb3 {[%clk 0:01:45]}  Rde8 {[%clk 0:02:27]} 17. b5 {[%clk 0:01:33]}  Nd8 {[%clk 0:02:26]} 18. Rab1 {[%clk 0:01:33]}  Ne6 {[%clk 0:02:25]} 19. Na5 {[%clk 0:01:15]}  Bd8 {[%clk 0:02:23]} 20. Nc6+ {[%clk 0:01:08]}  bxc6 {[%clk 0:02:23]} 21. bxc6+ {[%clk 0:01:07]}  Bb6 {[%clk 0:02:24]} 22. a4 {[%clk 0:00:58]}  Ka8 {[%clk 0:02:08]} 23. a5 {[%clk 0:00:54]}  Bc7 {[%clk 0:02:08]} 24. Qa6 {[%clk 0:00:52]}  Qxh2+ {[%clk 0:02:05]} 25. Kf2 {[%clk 0:00:50]}  Qh4+ {[%clk 0:01:58]} 26. g3 {[%clk 0:00:49]}  Bxg3+ {[%clk 0:01:54]} 27. Nxg3 {[%clk 0:00:45]}  Qh2+ {[%clk 0:01:54]} 28. Ke1 {[%clk 0:00:28]}  Nc5+ {[%clk 0:01:45]} 0-1


[Site "https://www.chess.com"]

[Event "Titled Tuesday Blitz March 29 Early 2022"]
[White "Tregubov, Pavel V."]
[Black "Costachi, Mihnea"]
[WhiteFideId "4115341"]
[BlackFideId "1217518"]
[WhiteElo "2341"]
[BlackElo "2464"]
[Result "1/2-1/2"]
[Round "07"]
[TimeControl "180+1"]
[Date "2022.03.29"]
[WhiteClock "0:00:26"]
[BlackClock "0:01:37"]

1. e4 {[%clk 0:02:41]}  e5 {[%clk 0:02:59]} 2. Nf3 {[%clk 0:02:41]}  Nc6 {[%clk 0:03:00]} 3. Bb5 {[%clk 0:02:41]}  a6 {[%clk 0:03:00]} 4. Ba4 {[%clk 0:02:41]}  d6 {[%clk 0:03:01]} 5. d4 {[%clk 0:02:41]}  b5 {[%clk 0:03:00]} 6. Bb3 {[%clk 0:02:39]}  Nxd4 {[%clk 0:03:00]} 7. Nxd4 {[%clk 0:02:39]}  exd4 {[%clk 0:03:01]} 8. c3 {[%clk 0:02:39]}  d3 {[%clk 0:03:02]} 9. Qxd3 {[%clk 0:02:37]}  Nf6 {[%clk 0:03:02]} 10. O-O {[%clk 0:02:36]}  Be7 {[%clk 0:03:03]} 11. a4 {[%clk 0:02:32]}  Bd7 {[%clk 0:02:54]} 12. Re1 {[%clk 0:02:23]}  O-O {[%clk 0:02:53]} 13. Nd2 {[%clk 0:02:12]}  bxa4 {[%clk 0:02:53]} 14. Bxa4 {[%clk 0:02:12]}  Bxa4 {[%clk 0:02:54]} 15. Rxa4 {[%clk 0:02:12]}  Nd7 {[%clk 0:02:55]} 16. Ra1 {[%clk 0:01:58]}  Bg5 {[%clk 0:02:52]} 17. Nf3 {[%clk 0:01:49]}  Nc5 {[%clk 0:02:52]} 18. Qc2 {[%clk 0:01:49]}  Bxc1 {[%clk 0:02:51]} 19. Raxc1 {[%clk 0:01:47]}  Re8 {[%clk 0:02:52]} 20. b4 {[%clk 0:01:47]}  Ne6 {[%clk 0:02:52]} 21. Ra1 {[%clk 0:01:41]}  Qf6 {[%clk 0:02:49]} 22. Qd1 {[%clk 0:01:30]}  Nf4 {[%clk 0:02:47]} 23. Re3 {[%clk 0:01:27]}  Qg6 {[%clk 0:02:39]} 24. g3 {[%clk 0:01:24]}  Nh3+ {[%clk 0:02:33]} 25. Kg2 {[%clk 0:01:24]}  Ng5 {[%clk 0:02:33]} 26. Nxg5 {[%clk 0:01:22]}  Qxg5 {[%clk 0:02:34]} 27. Qd3 {[%clk 0:01:20]}  a5 {[%clk 0:02:33]} 28. h4 {[%clk 0:01:20]}  Qh5 {[%clk 0:02:32]} 29. bxa5 {[%clk 0:01:05]}  Rxa5 {[%clk 0:02:31]} 30. Rxa5 {[%clk 0:00:58]}  Qxa5 {[%clk 0:02:32]} 31. Qc4 {[%clk 0:00:56]}  h6 {[%clk 0:02:30]} 32. Qc6 {[%clk 0:00:53]}  Re7 {[%clk 0:02:26]} 33. c4 {[%clk 0:00:52]}  Qe5 {[%clk 0:02:16]} 34. Qd5 {[%clk 0:00:40]}  Kh7 {[%clk 0:02:10]} 35. Re2 {[%clk 0:00:37]}  c5 {[%clk 0:02:04]} 36. Qxe5 {[%clk 0:00:35]}  Rxe5 {[%clk 0:02:02]} 37. f4 {[%clk 0:00:35]}  Re7 {[%clk 0:02:02]} 38. Kf3 {[%clk 0:00:36]}  Ra7 {[%clk 0:02:02]} 39. Rd2 {[%clk 0:00:37]}  Ra3+ {[%clk 0:01:57]} 40. Kg4 {[%clk 0:00:35]}  Re3 {[%clk 0:01:57]} 41. Kf5 {[%clk 0:00:24]}  Rxg3 {[%clk 0:01:43]} 42. Rxd6 {[%clk 0:00:24]}  Rc3 {[%clk 0:01:43]} 43. Rd7 {[%clk 0:00:24]}  Kg8 {[%clk 0:01:43]} 44. Rd8+ {[%clk 0:00:24]}  Kh7 {[%clk 0:01:43]} 45. Rd7 {[%clk 0:00:25]}  Kg8 {[%clk 0:01:37]} 46. Rd8+ {[%clk 0:00:25]}  Kh7 {[%clk 0:01:37]} 47. Rd7 {[%clk 0:00:26]} 1/2-1/2


[Site "https://www.chess.com"]

[Event "Titled Tuesday Blitz March 29 Early 2022"]
[White "Tsydypov, Zhamsaran"]
[Black "Martinez Alcantara, Jose Eduardo"]
[WhiteFideId "4108566"]
[BlackFideId "3805662"]
[WhiteElo "2614"]
[BlackElo "2690"]
[Result "0-1"]
[Round "07"]
[TimeControl "180+1"]
[Date "2022.03.29"]
[WhiteClock "0:00:07"]
[BlackClock "0:00:07"]

1. e4 {[%clk 0:02:59]}  c5 {[%clk 0:03:00]} 2. Nf3 {[%clk 0:02:59]}  d6 {[%clk 0:03:01]} 3. d4 {[%clk 0:02:58]}  cxd4 {[%clk 0:03:02]} 4. Nxd4 {[%clk 0:02:59]}  Nf6 {[%clk 0:03:03]} 5. Nc3 {[%clk 0:02:59]}  Nc6 {[%clk 0:03:04]} 6. Bg5 {[%clk 0:02:58]}  e6 {[%clk 0:03:04]} 7. Qd2 {[%clk 0:02:58]}  a6 {[%clk 0:03:05]} 8. O-O-O {[%clk 0:02:58]}  Bd7 {[%clk 0:03:06]} 9. f4 {[%clk 0:02:58]}  Be7 {[%clk 0:03:03]} 10. Nf3 {[%clk 0:02:58]}  b5 {[%clk 0:03:02]} 11. e5 {[%clk 0:02:56]}  b4 {[%clk 0:03:02]} 12. exf6 {[%clk 0:02:56]}  bxc3 {[%clk 0:03:03]} 13. Qxc3 {[%clk 0:02:56]}  gxf6 {[%clk 0:03:03]} 14. Kb1 {[%clk 0:02:56]}  Rg8 {[%clk 0:02:44]} 15. Bh4 {[%clk 0:02:55]}  Rb8 {[%clk 0:02:38]} 16. Bd3 {[%clk 0:02:52]}  d5 {[%clk 0:02:22]} 17. Bxh7 {[%clk 0:02:43]}  Rh8 {[%clk 0:02:15]} 18. Ng5 {[%clk 0:02:20]}  d4 {[%clk 0:01:55]} 19. Rxd4 {[%clk 0:02:16]}  Nxd4 {[%clk 0:01:55]} 20. Qxd4 {[%clk 0:02:16]}  Qb6 {[%clk 0:01:54]} 21. Qc3 {[%clk 0:01:58]}  Qb4 {[%clk 0:01:48]} 22. Be1 {[%clk 0:01:43]}  Qxf4 {[%clk 0:00:57]} 23. Nh3 {[%clk 0:01:14]}  Qg4 {[%clk 0:00:41]} 24. Nf2 {[%clk 0:01:13]}  Qxg2 {[%clk 0:00:27]} 25. Be4 {[%clk 0:01:07]}  Qg5 {[%clk 0:00:27]} 26. Nd3 {[%clk 0:01:04]}  Qb5 {[%clk 0:00:22]} 27. Rg1 {[%clk 0:00:47]}  Rc8 {[%clk 0:00:22]} 28. Qd2 {[%clk 0:00:46]}  f5 {[%clk 0:00:20]} 29. Bf3 {[%clk 0:00:43]}  Bf6 {[%clk 0:00:21]} 30. Bg3 {[%clk 0:00:41]}  Bc6 {[%clk 0:00:18]} 31. Bxc6+ {[%clk 0:00:39]}  Qxc6 {[%clk 0:00:18]} 32. Rd1 {[%clk 0:00:38]}  Qb5 {[%clk 0:00:15]} 33. b3 {[%clk 0:00:37]}  Qd5 {[%clk 0:00:14]} 34. Qe2 {[%clk 0:00:25]}  Qe4 {[%clk 0:00:12]} 35. Qf1 {[%clk 0:00:20]}  a5 {[%clk 0:00:10]} 36. Ne1 {[%clk 0:00:11]}  Qc6 {[%clk 0:00:09]} 37. Qe2 {[%clk 0:00:10]}  Qc3 {[%clk 0:00:08]} 38. Qb5+ {[%clk 0:00:08]}  Kf8 {[%clk 0:00:09]} 39. Kc1 {[%clk 0:00:07]}  Bg5+ {[%clk 0:00:07]} 40. Kb1 {[%clk 0:00:07]}  Bf6 {[%clk 0:00:08]} 41. Kc1 {[%clk 0:00:08]}  Kg7 {[%clk 0:00:09]} 42. Rd3 {[%clk 0:00:06]}  Qb2+ {[%clk 0:00:08]} 43. Kd2 {[%clk 0:00:07]}  Rhd8 {[%clk 0:00:08]} 44. Ke2 {[%clk 0:00:07]}  Rxc2+ {[%clk 0:00:06]} 45. Nxc2 {[%clk 0:00:06]}  Qxc2+ {[%clk 0:00:07]} 46. Ke3 {[%clk 0:00:07]}  Bg5+ {[%clk 0:00:07]} 0-1


[Site "https://www.chess.com"]

[Event "Titled Tuesday Blitz March 29 Early 2022"]
[White "Tymrakiewicz, Rafal"]
[Black "Jaferian, Koosha"]
[WhiteFideId "1108832"]
[BlackFideId "12507440"]
[WhiteElo "2205"]
[BlackElo "2030"]
[Result "0-1"]
[Round "07"]
[TimeControl "180+1"]
[Date "2022.03.30"]
[WhiteClock "0:00:09"]
[BlackClock "0:00:20"]

1. d4 {[%clk 0:03:00]}  Nf6 {[%clk 0:02:57]} 2. Bg5 {[%clk 0:03:01]}  d5 {[%clk 0:02:56]} 3. e3 {[%clk 0:02:59]}  e6 {[%clk 0:02:55]} 4. Nd2 {[%clk 0:02:59]}  Be7 {[%clk 0:02:56]} 5. Bd3 {[%clk 0:02:59]}  O-O {[%clk 0:02:56]} 6. f4 {[%clk 0:02:59]}  c5 {[%clk 0:02:57]} 7. c3 {[%clk 0:02:59]}  Nc6 {[%clk 0:02:57]} 8. Ngf3 {[%clk 0:02:59]}  Nd7 {[%clk 0:02:58]} 9. Bxe7 {[%clk 0:02:54]}  Qxe7 {[%clk 0:02:59]} 10. O-O {[%clk 0:02:55]}  f5 {[%clk 0:02:59]} 11. Ne5 {[%clk 0:02:53]}  Nf6 {[%clk 0:02:57]} 12. Ndf3 {[%clk 0:02:28]}  Bd7 {[%clk 0:02:50]} 13. Nxc6 {[%clk 0:02:24]}  Bxc6 {[%clk 0:02:49]} 14. Ne5 {[%clk 0:02:24]}  Be8 {[%clk 0:02:50]} 15. a3 {[%clk 0:02:16]}  Rc8 {[%clk 0:02:42]} 16. b4 {[%clk 0:02:13]}  b6 {[%clk 0:02:41]} 17. Qe2 {[%clk 0:02:09]}  Bh5 {[%clk 0:02:33]} 18. Qd2 {[%clk 0:02:03]}  Rc7 {[%clk 0:02:26]} 19. Rfb1 {[%clk 0:02:02]}  Rfc8 {[%clk 0:02:25]} 20. Rb2 {[%clk 0:01:56]}  Nd7 {[%clk 0:02:17]} 21. Ba6 {[%clk 0:01:52]}  Nxe5 {[%clk 0:02:14]} 22. fxe5 {[%clk 0:01:49]}  Rf8 {[%clk 0:02:10]} 23. bxc5 {[%clk 0:01:46]}  bxc5 {[%clk 0:02:10]} 24. a4 {[%clk 0:01:15]}  Qg5 {[%clk 0:02:05]} 25. Rf1 {[%clk 0:01:14]}  c4 {[%clk 0:01:44]} 26. a5 {[%clk 0:01:11]}  Rcf7 {[%clk 0:01:44]} 27. Rb7 {[%clk 0:01:03]}  Rxb7 {[%clk 0:01:39]} 28. Bxb7 {[%clk 0:01:03]}  Rb8 {[%clk 0:01:39]} 29. a6 {[%clk 0:01:03]}  Qe7 {[%clk 0:01:36]} 30. Qb2 {[%clk 0:01:01]}  h6 {[%clk 0:01:29]} 31. Qb4 {[%clk 0:01:00]}  Qxb4 {[%clk 0:01:22]} 32. cxb4 {[%clk 0:01:00]}  Be8 {[%clk 0:01:23]} 33. Ra1 {[%clk 0:00:57]}  Bd7 {[%clk 0:00:48]} 34. Ra5 {[%clk 0:00:51]}  Bc8 {[%clk 0:00:49]} 35. Bc6 {[%clk 0:00:35]}  Rb6 {[%clk 0:00:41]} 36. b5 {[%clk 0:00:34]}  c3 {[%clk 0:00:29]} 37. Ra2 {[%clk 0:00:18]}  Bxa6 {[%clk 0:00:29]} 38. bxa6 {[%clk 0:00:16]}  Rxc6 {[%clk 0:00:29]} 39. Rc2 {[%clk 0:00:14]}  Kf7 {[%clk 0:00:24]} 40. Kf2 {[%clk 0:00:14]}  Ke7 {[%clk 0:00:25]} 41. Ke2 {[%clk 0:00:14]}  Kd7 {[%clk 0:00:26]} 42. Kd3 {[%clk 0:00:15]}  Kc7 {[%clk 0:00:26]} 43. Rxc3 {[%clk 0:00:13]}  Rxc3+ {[%clk 0:00:27]} 44. Kxc3 {[%clk 0:00:14]}  Kb6 {[%clk 0:00:28]} 45. Kb4 {[%clk 0:00:13]}  g5 {[%clk 0:00:18]} 46. g3 {[%clk 0:00:11]}  g4 {[%clk 0:00:18]} 47. Ka4 {[%clk 0:00:09]}  Kxa6 {[%clk 0:00:18]} 48. Kb4 {[%clk 0:00:09]}  Kb6 {[%clk 0:00:19]} 49. Ka4 {[%clk 0:00:09]}  a5 {[%clk 0:00:19]} 50. Kb3 {[%clk 0:00:09]}  Kb5 {[%clk 0:00:20]} 51. Ka3 {[%clk 0:00:09]}  a4 {[%clk 0:00:20]} 52. Kb2 {[%clk 0:00:09]}  Kb4 {[%clk 0:00:21]} 53. Ka2 {[%clk 0:00:09]}  a3 {[%clk 0:00:19]} 54. Kb1 {[%clk 0:00:09]}  Kb3 {[%clk 0:00:19]} 55. Ka1 {[%clk 0:00:09]}  a2 {[%clk 0:00:20]} 56. h4 {[%clk 0:00:09]}  gxh3 {[%clk 0:00:20]} 57. e4 {[%clk 0:00:09]}  h2 {[%clk 0:00:20]} 0-1


[Site "https://www.chess.com"]

[Event "Titled Tuesday Blitz March 29 Early 2022"]
[White "Vovk, Orest"]
[Black "Moksh Amit Doshi"]
[WhiteFideId "14113490"]
[BlackFideId "25064967"]
[WhiteElo "2203"]
[BlackElo "2245"]
[Result "1/2-1/2"]
[Round "07"]
[TimeControl "180+1"]
[Date "2022.03.30"]
[WhiteClock "0:00:35"]
[BlackClock "0:00:51"]

1. h4 {[%clk 0:02:35]}  e5 {[%clk 0:02:56]} 2. h5 {[%clk 0:02:36]}  d5 {[%clk 0:02:54]} 3. h6 {[%clk 0:02:23]}  Nxh6 {[%clk 0:02:53]} 4. d4 {[%clk 0:02:23]}  e4 {[%clk 0:02:50]} 5. Bxh6 {[%clk 0:02:23]}  gxh6 {[%clk 0:02:51]} 6. e3 {[%clk 0:02:23]}  Rg8 {[%clk 0:02:47]} 7. c4 {[%clk 0:02:22]}  c6 {[%clk 0:02:44]} 8. Nc3 {[%clk 0:02:22]}  Be6 {[%clk 0:02:44]} 9. Qb3 {[%clk 0:02:22]}  Qb6 {[%clk 0:02:43]} 10. Rh5 {[%clk 0:02:20]}  Rg5 {[%clk 0:02:40]} 11. Rh4 {[%clk 0:02:16]}  Nd7 {[%clk 0:02:39]} 12. g3 {[%clk 0:02:15]}  O-O-O {[%clk 0:02:19]} 13. Nge2 {[%clk 0:02:13]}  dxc4 {[%clk 0:02:14]} 14. Qxb6 {[%clk 0:02:09]}  Nxb6 {[%clk 0:02:15]} 15. Nxe4 {[%clk 0:02:09]}  Rb5 {[%clk 0:02:15]} 16. O-O-O {[%clk 0:02:07]}  Na4 {[%clk 0:02:11]} 17. N2c3 {[%clk 0:02:07]}  Nxc3 {[%clk 0:02:05]} 18. Nxc3 {[%clk 0:02:07]}  Ra5 {[%clk 0:02:06]} 19. e4 {[%clk 0:02:02]}  Bg7 {[%clk 0:02:06]} 20. e5 {[%clk 0:01:55]}  f6 {[%clk 0:01:46]} 21. f4 {[%clk 0:01:54]}  fxe5 {[%clk 0:01:45]} 22. dxe5 {[%clk 0:01:51]}  Rxd1+ {[%clk 0:01:43]} 23. Kxd1 {[%clk 0:01:51]}  b5 {[%clk 0:01:37]} 24. Bh3 {[%clk 0:01:45]}  Bxh3 {[%clk 0:01:36]} 25. Rxh3 {[%clk 0:01:46]}  b4 {[%clk 0:01:36]} 26. Ne4 {[%clk 0:01:46]}  Rxa2 {[%clk 0:01:36]} 27. Nd6+ {[%clk 0:01:46]}  Kd7 {[%clk 0:01:37]} 28. Nxc4 {[%clk 0:01:47]}  Ke6 {[%clk 0:01:34]} 29. g4 {[%clk 0:01:38]}  Kd5 {[%clk 0:01:34]} 30. b3 {[%clk 0:01:38]}  Rg2 {[%clk 0:01:33]} 31. g5 {[%clk 0:01:35]}  Rg1+ {[%clk 0:01:32]} 32. Ke2 {[%clk 0:01:33]}  hxg5 {[%clk 0:01:28]} 33. f5 {[%clk 0:01:23]}  Bxe5 {[%clk 0:01:26]} 34. Rd3+ {[%clk 0:01:20]}  Bd4 {[%clk 0:01:26]} 35. f6 {[%clk 0:01:18]}  Rg2+ {[%clk 0:01:26]} 36. Ke1 {[%clk 0:01:14]}  Ke4 {[%clk 0:01:18]} 37. Rxd4+ {[%clk 0:01:09]}  Kxd4 {[%clk 0:01:14]} 38. f7 {[%clk 0:01:10]}  Rg1+ {[%clk 0:01:14]} 39. Kf2 {[%clk 0:01:10]}  Rg4 {[%clk 0:01:14]} 40. f8=Q {[%clk 0:00:58]}  Rf4+ {[%clk 0:01:15]} 41. Qxf4+ {[%clk 0:00:57]}  gxf4 {[%clk 0:01:15]} 42. Kf3 {[%clk 0:00:56]}  Kc3 {[%clk 0:01:00]} 43. Na5 {[%clk 0:00:56]}  c5 {[%clk 0:01:01]} 44. Kxf4 {[%clk 0:00:55]}  c4 {[%clk 0:00:58]} 45. bxc4 {[%clk 0:00:50]}  b3 {[%clk 0:00:59]} 46. Nxb3 {[%clk 0:00:48]}  Kxc4 {[%clk 0:00:59]} 47. Na5+ {[%clk 0:00:43]}  Kb5 {[%clk 0:00:59]} 48. Nb7 {[%clk 0:00:41]}  Kb6 {[%clk 0:00:58]} 49. Nd6 {[%clk 0:00:41]}  Kc6 {[%clk 0:00:59]} 50. Nc4 {[%clk 0:00:38]}  Kb5 {[%clk 0:00:59]} 51. Nd6+ {[%clk 0:00:37]}  Kc5 {[%clk 0:00:59]} 52. Nb7+ {[%clk 0:00:36]}  Kc6 {[%clk 0:00:55]} 53. Na5+ {[%clk 0:00:35]}  Kb5 {[%clk 0:00:55]} 54. Nb7 {[%clk 0:00:35]}  Kc6 {[%clk 0:00:50]} 55. Na5+ {[%clk 0:00:35]}  Kb5 {[%clk 0:00:51]} 1/2-1/2


[Site "https://www.chess.com"]